fUSD/lending_fUSD_20250513
["ID","MTS","AMOUNT","RATE_DAILY","PERIOD"]
[360898734,1747128644039,-412.49190354,0.00011989,2]
[360898735,1747128644048,-400.0,0.00011989,2]
[360898736,1747128644058,-407.41310791,0.00011989,2]
[360898737,1747128644067,-414.84090998,0.00011989,2]
[360898738,1747128644077,-404.3830301,0.00011989,2]
[360898739,1747128644086,-400.44845455,0.00011989,2]
[360898740,1747128644095,-504.5646389,0.00011989,2]
[360898741,1747128644105,-400.0,0.00011989,2]
[360898742,1747128644114,-400.0,0.00011989,2]
[360898743,1747128644123,-416.29902182,0.00011989,2]
[360898744,1747128644133,-400.0,0.00011989,2]
[360898745,1747128644142,-418.25531036,0.00011989,2]
[360898746,1747128644151,-408.687679,0.00011989,2]
[360898747,1747128644161,-400.0,0.00011989,2]
[360898748,1747128644171,-400.0,0.00011989,2]
[360898749,1747128644180,-409.31493616,0.00011989,2]
[360898750,1747128644189,-400.0,0.00011989,2]
[360898751,1747128644199,-406.42991328,0.00011989,2]
[360898752,1747128644209,-417.65309727,0.00011989,2]
[360898753,1747128644219,-43707.55241067,0.00011989,2]
[360898754,1747128644834,-432.39806912,0.00011985,2]
[360898755,1747128644845,-94.64193088,0.00011985,2]
[360898756,1747128644855,-400.0,0.00011985,2]
[360898757,1747128644864,-400.0,0.00011986,2]
[360898758,1747128644873,-40.04806912,0.00011989,2]
[360898759,1747128644898,-422.0041823,0.00011985,2]
[360898760,1747128644910,-5.80810184,0.00011985,2]
[360898761,1747128644920,-376.20746987,0.00011989,2]
[360898762,1747128644929,-36.38351279,0.00011989,2]
[360898763,1747128644940,-380.40783684,0.00011989,2]
[360898764,1747128644951,-761.89,0.00011989,2]
[360898765,1747128644960,-400.0,0.00011989,2]
[360898766,1747128644969,-400.0,0.00011989,2]
[360898767,1747128644979,-364.08228156,0.00011989,2]
[360898768,1747128644988,-400.0,0.00011989,2]
[360898769,1747128644997,-1549.92,0.00011989,2]
[360898770,1747128645007,-229.31356083,0.00011989,2]
[360898771,1747128645016,-400.0,0.00011989,2]
[360898772,1747128645025,-408.80605956,0.00011989,2]
[360898773,1747128645034,-1674.12,0.00011989,2]
[360898774,1747128645043,-400.0,0.00011989,2]
[360898775,1747128645052,-400.0,0.00011989,2]
[360898776,1747128645061,-400.0,0.00011989,2]
[360898777,1747128645070,-413.67031953,0.00011989,2]
[360898778,1747128645080,-400.0,0.00011989,2]
[360898779,1747128645089,-400.0,0.00011989,2]
[360898780,1747128645098,-400.0,0.00011989,2]
[360898781,1747128645107,-744.43,0.00011989,2]
[360898782,1747128645116,-414.0184915,0.00011989,2]
[360898783,1747128645126,-400.0,0.00011989,2]
[360898784,1747128645135,-405.69628823,0.00011989,2]
[360898785,1747128645144,-494.1,0.00011989,2]
[360898786,1747128645154,-403.20187412,0.00011989,2]
[360898787,1747128645163,-537.08311929,0.00011989,2]
[360898788,1747128645176,-400.0,0.00011989,2]
[360898789,1747128645197,-410.39202911,0.00011989,2]
[360898790,1747128645212,-376.28743955,0.00011989,2]
[360898791,1747128645231,-405.91024288,0.00011989,2]
[360898792,1747128645248,-400.0,0.00011989,2]
[360898793,1747128645263,-410.89071267,0.00011989,2]
[360898794,1747128645281,-400.0,0.00011989,2]
[360898795,1747128645299,-430.1707695,0.00011989,2]
[360898796,1747128645316,-1065.29,0.00011989,2]
[360898797,1747128645335,-2406.99,0.00011989,2]
[360898798,1747128645351,-151.0,0.00011989,2]
[360898799,1747128645369,-151.0,0.00011989,2]
[360898800,1747128645385,-410.29374917,0.00011989,2]
[360898801,1747128645399,-405.58504615,0.00011989,2]
[360898802,1747128645418,-400.0,0.00011989,2]
[360898803,1747128645431,-1940.23,0.00011989,2]
[360898804,1747128645445,-1035.55,0.00011989,2]
[360898805,1747128645464,-400.0,0.00011989,2]
[360898806,1747128645477,-483.61,0.00011989,2]
[360898807,1747128645496,-400.0,0.00011989,2]
[360898808,1747128645511,-406.53004605,0.00011989,2]
[360898809,1747128645527,-449.84,0.00011989,2]
[360898810,1747128645542,-400.0,0.00011989,2]
[360898811,1747128645557,-409.25469401,0.00011989,2]
[360898812,1747128645572,-400.0,0.00011989,2]
[360898813,1747128645587,-407.24006799,0.00011989,2]
[360898814,1747128645602,-400.0,0.00011989,2]
[360898815,1747128645617,-411.32486508,0.00011989,2]
[360898816,1747128645631,-400.0,0.00011989,2]
[360898817,1747128645646,-400.0,0.00011989,2]
[360898818,1747128645660,-502.89,0.00011989,2]
[360898819,1747128645682,-404.97606927,0.00011989,2]
[360898820,1747128645700,-406.91640594,0.00011989,2]
[360898821,1747128645714,-404.41418403,0.00011989,2]
[360898822,1747128645728,-1685.87,0.00011989,2]
[360898823,1747128645742,-400.0,0.00011989,2]
[360898824,1747128645757,-407.09848061,0.00011989,2]
[360898825,1747128645772,-400.0,0.00011989,2]
[360898826,1747128645786,-808.6,0.00011989,2]
[360898827,1747128645801,-416.05707231,0.00011989,2]
[360898828,1747128645814,-472.66918036,0.00011989,2]
[360898829,1747128645829,-678.13,0.00011989,2]
[360898831,1747128645844,-518.00376809,0.00011989,2]
[360898832,1747128645859,-1722.96,0.00011989,2]
[360898833,1747128645873,-151.0,0.00011989,2]
[360898834,1747128645887,-151.0,0.00011989,2]
[360898835,1747128645902,-406.89851184,0.00011989,2]
[360898836,1747128645917,-400.0,0.00011989,2]
[360898837,1747128645931,-401.38726586,0.00011989,2]
[360898838,1747128645952,-1050.59,0.00011989,2]
[360898841,1747128645967,-400.0,0.00011989,2]
[360898844,1747128645981,-400.0,0.00011989,2]
[360898845,1747128645995,-400.0,0.00011989,2]
[360898846,1747128646010,-400.0,0.00011989,2]
[360898847,1747128646023,-400.0,0.00011989,2]
[360898848,1747128646037,-725.49,0.00011989,2]
[360898849,1747128646051,-400.0,0.00011989,2]
[360898850,1747128646065,-400.0,0.00011989,2]
[360898851,1747128646079,-400.0,0.00011989,2]
[360898852,1747128646094,-413.9515659,0.00011989,2]
[360898853,1747128646109,-151.0,0.00011989,2]
[360898854,1747128646122,-400.0,0.00011989,2]
[360898855,1747128646137,-400.0,0.00011989,2]
[360898856,1747128646150,-585.8,0.00011989,2]
[360898857,1747128646165,-410.55219762,0.00011989,2]
[360898858,1747128646179,-409.89105243,0.00011989,2]
[360898859,1747128646193,-406.0943836,0.00011989,2]
[360898860,1747128646209,-151.0,0.00011989,2]
[360898861,1747128646223,-403.77741737,0.00011989,2]
[360898862,1747128646232,-993.72,0.00011989,2]
[360898863,1747128646241,-405.36098106,0.00011989,2]
[360898864,1747128646251,-839.46,0.00011989,2]
[360898865,1747128646261,-400.0,0.00011989,2]
[360898866,1747128646270,-447.93235392,0.00011989,2]
[360898867,1747128646280,-411.4886236,0.00011989,2]
[360898868,1747128646289,-400.0,0.00011989,2]
[360898869,1747128646298,-767.96,0.00011989,2]
[360898870,1747128646308,-418.86311941,0.00011989,2]
[360898871,1747128646317,-516.45415753,0.00011989,2]
[360898872,1747128646327,-258.01628727,0.00011989,2]
[360898873,1747128646336,-400.0,0.00011989,2]
[360898874,1747128646345,-406.57456167,0.00011989,2]
[360898875,1747128646355,-400.0,0.00011989,2]
[360898876,1747128646364,-411.75344999,0.00011989,2]
[360898877,1747128646373,-400.0,0.00011989,2]
[360898878,1747128646383,-404.44674521,0.00011989,2]
[360898879,1747128646670,-400.0,0.00011989,2]
[360898880,1747128646700,-2072.24,0.00011989,2]
[360898881,1747128646710,-400.0,0.00011989,2]
[360898882,1747128646720,-408.46241835,0.00011989,2]
[360898883,1747128646729,-400.0,0.00011989,2]
[360898884,1747128646738,-29.12025314,0.00011989,2]
[360898887,1747128647100,-2125.56974686,0.00011989,2]
[360898888,1747128647110,-400.0,0.00011989,2]
[360898889,1747128647120,-400.0,0.00011989,2]
[360898890,1747128647129,-2355.68,0.00011989,2]
[360898891,1747128647139,-1942.63,0.00011989,2]
[360898892,1747128647148,-400.0,0.00011989,2]
[360898893,1747128647156,-151.0,0.00011989,2]
[360898894,1747128647166,-96.90853984,0.00011989,2]
[360898895,1747128647177,-54.09146016,0.00011989,2]
[360898896,1747128647186,-276.97853984,0.00011989,2]
[360898897,1747128647206,-123.02146016,0.00011989,2]
[360898898,1747128647215,-591.50084304,0.0001199,2]
[360898899,1747128647788,-400.0,0.00011985,2]
[360898900,1747128647797,-414.32683258,0.00011985,2]
[360898901,1747128647806,-353.79422921,0.00011985,2]
[360898902,1747128647815,-55.97983039,0.0001199,2]
[360898903,1747128647824,-1000.0,0.00011992,2]
[360898904,1747128647834,-251.0,0.00011993,2]
[360898905,1747128647843,-500.0,0.00011993,2]
[360898906,1747128647852,-151.0,0.00011994,2]
[360898907,1747128647861,-295.994627,0.00011994,2]
[360898908,1747128647870,-151.0,0.00011994,2]
[360898909,1747128647880,-151.0,0.00011994,2]
[360898910,1747128647889,-151.0,0.00011994,2]
[360898911,1747128647898,-151.0,0.00011994,2]
[360898912,1747128647907,-150.0,0.00011994,2]
[360898913,1747128647917,-150.0,0.00011995,2]
[360898914,1747128647926,-500.0,0.00011998,2]
[360898915,1747128647935,-400.0,0.00011999,2]
[360898916,1747128647945,-400.0,0.00011999,2]
[360898917,1747128647955,-302.40111894,0.00011999,2]
[360898918,1747128647965,-400.0,0.00011999,2]
[360898919,1747128647974,-516.64602593,0.00011999,2]
[360898920,1747128647984,-359.09879204,0.00011999,2]
[360898921,1747128647993,-516.84450685,0.00011999,2]
[360898922,1747128648003,-503.11716233,0.00011999,2]
[360898923,1747128648012,-400.0,0.00011999,2]
[360898924,1747128648021,-508.98176397,0.00011999,2]
[360898925,1747128648030,-400.0,0.00011999,2]
[360898926,1747128648039,-219.29278502,0.00011999,2]
[360898927,1747128648048,-519.48012146,0.00011999,2]
[360898928,1747128648057,-513.67784503,0.00011999,2]
[360898929,1747128648066,-522.91774419,0.00011999,2]
[360898930,1747128648075,-460.71469887,0.00011999,2]
[360898931,1747128648084,-400.0,0.00011999,2]
[360898932,1747128648094,-402.17072511,0.00011999,2]
[360898933,1747128648104,-400.0,0.00011999,2]
[360898934,1747128648113,-400.0,0.00011999,2]
[360898935,1747128648123,-450.0,0.00011999,2]
[360898936,1747128648132,-498.02399997,0.00011999,2]
[360898937,1747128648141,-400.0,0.00011999,2]
[360898938,1747128648151,-500.0,0.00011999,2]
[360898939,1747128648160,-500.0,0.00011999,2]
[360898940,1747128648169,-354.93391209,0.00011999,2]
[360898941,1747128648178,-400.0,0.00011999,2]
[360898942,1747128648187,-531.15081528,0.00011999,2]
[360898943,1747128648197,-400.0,0.00011999,2]
[360898944,1747128648206,-240.19392333,0.00011999,2]
[360898945,1747128648216,-151.0,0.00011999,2]
[360898946,1747128648226,-151.0,0.00011999,2]
[360898947,1747128648236,-151.0,0.00011999,2]
[360898948,1747128648245,-502.76381463,0.00011999,2]
[360898949,1747128648254,-500.0,0.00011999,2]
[360898950,1747128648263,-500.0,0.00011999,2]
[360898951,1747128648272,-500.0,0.00011999,2]
[360898952,1747128648281,-500.0,0.00011999,2]
[360898953,1747128648290,-500.0,0.00011999,2]
[360898954,1747128648299,-500.0,0.00011999,2]
[360898955,1747128648309,-879.947217,0.00011999,2]
[360898956,1747128648318,-1055.8807259,0.00011999,2]
[360898957,1747128648327,-879.947217,0.00011999,2]
[360898958,1747128648336,-7433.7941518,0.00011999,2]
[360898959,1747128648345,-18077.9159802,0.00011999,2]
[360898960,1747128648355,-150.0,0.00011999,2]
[360898961,1747128648364,-400.0,0.00011999,2]
[360898962,1747128648374,-992.99,0.00011999,2]
[360898963,1747128648383,-400.0,0.00011999,2]
[360898964,1747128648393,-1798.09,0.00011999,2]
[360898965,1747128648403,-1348.3147376,0.00011999,2]
[360898966,1747128648412,-400.0,0.00011999,2]
[360898967,1747128648422,-500.0,0.00011999,2]
[360898968,1747128648431,-500.0,0.00011999,2]
[360898969,1747128648441,-500.0,0.00011999,2]
[360898970,1747128648451,-500.0,0.00011999,2]
[360898971,1747128648460,-500.0,0.00011999,2]
[360898972,1747128648470,-500.0,0.00011999,2]
[360898973,1747128648479,-400.0,0.00011999,2]
[360898974,1747128648489,-400.0,0.00011999,2]
[360898975,1747128648499,-400.0,0.00011999,2]
[360898976,1747128648508,-1893.28,0.00011999,2]
[360898977,1747128648518,-400.0,0.00011999,2]
[360898978,1747128648701,-775.11,0.00011999,2]
[360898979,1747128648711,-151.0,0.00011999,2]
[360898980,1747128648720,-400.0,0.00011999,2]
[360898981,1747128648729,-400.0,0.00011999,2]
[360898982,1747128648739,-980.76,0.00011999,2]
[360898983,1747128648749,-665.82,0.00011999,2]
[360898984,1747128648758,-1476.2072639,0.00011999,2]
[360898985,1747128648767,-151.0,0.00011999,2]
[360898986,1747128648777,-439.41034869,0.00011999,2]
[360898987,1747128648787,-265.77039094,0.00011999,2]
[360898988,1747128648796,-189.11657805,0.00012,2]
[360898989,1747128648805,-190334.48864249,0.00012,2]
[360898990,1747128648819,-1207.65737709,0.00012,2]
[360898991,1747128648830,-535.50755288,0.00012,2]
[360898992,1747128648859,-822.818844,0.00012,2]
[360898993,1747128648870,-87846.32749034,0.00012,2]
[360898994,1747128648897,-299.25183862,0.00012,2]
[360898995,1747128648914,-4869.50709441,0.00012,2]
[360898996,1747128649279,-2766.72,0.00011887,2]
[360898997,1747128649327,-8674.1152,0.00011887,2]
[360898998,1747128649339,-1847.00964321,0.00011887,2]
[360898999,1747128649351,-920.1476792,0.00011887,2]
[360899000,1747128649362,-400.0,0.00011985,2]
[360899001,1747128649372,-400.0,0.00011985,2]
[360899002,1747128649382,-404.70542135,0.00011985,2]
[360899003,1747128649392,-400.0,0.00011986,2]
[360899004,1747128649402,-8003.30853333,0.00012,2]
[360899005,1747128649413,-6317.09723648,0.00012,2]
[360899006,1747128649426,-5896.08823948,0.00012,2]
[360899007,1747128649438,-8329.94452053,0.00012,2]
[360899008,1747128649464,-634.80000082,0.00012,2]
[360899009,1747128649476,-3069.21159643,0.00012,2]
[360899010,1747128649489,-1110.59411207,0.00012,2]
[360899011,1747128649502,-2323.75680529,0.00012,2]
[360899012,1747128649514,-1573.57180481,0.00012,2]
[360899013,1747128649526,-1822.61555858,0.00012,2]
[360899014,1747128649538,-1932.25935447,0.00012,2]
[360899015,1747128649551,-3721.88856461,0.00012,2]
[360899016,1747128652241,784.88382843,0.00011687,2]
[360899030,1747128759714,-489.63444582,0.0001185,2]
[360899031,1747128763553,-43.34825753,0.0001185,2]
[360899032,1747128777382,-243.13690493,0.0001185,2]
[360899033,1747128782915,-256.86309507,0.0001185,2]
[360899034,1747128794029,-319.49510923,0.0001185,2]
[360899035,1747128810336,-180.50489077,0.0001185,2]
[360899036,1747128810364,-15.46410819,0.0001185,2]
[360899037,1747128879670,500.0,0.00011849,2]
[360899038,1747129002848,496.54,0.0001185,2]
[360899039,1747129002880,150.0,0.00011734,2]
[360899040,1747129102778,169.35,0.00011047,2]
[360899041,1747129123204,150.0,0.00011787,2]
[360899042,1747129227682,400.0,0.00028,120]
[360899043,1747129277700,269.22,0.00013504,7]
[360899044,1747129286479,162.01,0.00011017,2]
[360899045,1747129286784,162.01,0.00011031,2]
[360899046,1747129286984,162.01,0.00011045,2]
[360899047,1747129287172,162.01,0.00011058,2]
[360899048,1747129287358,162.01,0.00011072,2]
[360899049,1747129396098,592.45,0.00010931,2]
[360899050,1747129522192,1000.0,0.00010931,2]
[360899051,1747129622500,153.04,0.00011015,2]
[360899069,1747129766287,163.80385647,0.00028,120]
[360899070,1747129772893,168.97,0.00011311,2]
[360899077,1747129789516,163.96,0.00010981,2]
[360899078,1747129806909,302.72,9.055e-05,2]
[360899079,1747129807256,302.72,0.00011319,2]
[360899081,1747129832265,-207.4,0.00011878,2]
[360899082,1747129832275,-200.0,0.00011879,2]
[360899083,1747129832285,-200.0,0.00011881,2]
[360899084,1747129832294,-18.27689888,0.00011882,2]
[360899085,1747129832306,-231.72310112,0.00011882,2]
[360899086,1747129832315,-1200.0,0.00011883,2]
[360899087,1747129832324,-300.0,0.00011883,2]
[360899088,1747129832333,-13647.19654691,0.00011884,2]
[360899089,1747129832343,-938.14600168,0.00011884,2]
[360899090,1747129832352,-362.5,0.00011884,2]
[360899091,1747129832361,-4587.1324,0.00011885,2]
[360899092,1747129832370,-8761.1297,0.00011885,2]
[360899093,1747129832386,-5663.7285,0.00011885,2]
[360899094,1747129832400,-1000.0,0.00011885,2]
[360899095,1747129832417,-1249.255,0.00011885,2]
[360899096,1747129832436,-500.0,0.00011885,2]
[360899097,1747129832454,-315.9121252,0.00011885,2]
[360899098,1747129832473,-13247.04766144,0.00011885,2]
[360899099,1747129832494,-514.49026471,0.00011886,2]
[360899100,1747129832516,-8437.0155,0.00011886,2]
[360899101,1747129832536,-213.16497048,0.000119,2]
[360899102,1747129832556,-163.642793,0.000119,2]
[360899103,1747129832577,-200.0,0.00011904,2]
[360899104,1747129832594,-1075.0,0.00011939,2]
[360899106,1747129832607,-236.9227294,0.00011939,2]
[360899108,1747129832616,-668.65185757,0.00011978,2]
[360899110,1747129832625,-1050.66198297,0.00011983,3]
[360899112,1747129832635,-150.0,0.00011983,2]
[360899114,1747129832644,-23875.12345166,0.00011983,2]
[360899117,1747129832665,-592.45469495,0.00011983,2]
[360899119,1747129832679,-5327.64594215,0.00011983,2]
[360899121,1747129832688,-400.0,0.00011983,2]
[360899123,1747129832698,-400.0,0.00011983,2]
[360899125,1747129832707,-163.496,0.00011984,2]
[360899127,1747129832716,-1138.677,0.00011984,2]
[360899129,1747129832726,-402.49715258,0.00011984,2]
[360899131,1747129832735,-400.0,0.00011984,2]
[360899133,1747129832744,-400.0,0.00011984,2]
[360899135,1747129832754,-6832.37,0.00011984,2]
[360899137,1747129832763,-982.08,0.00011984,2]
[360899139,1747129832772,-404.25,0.00011984,2]
[360899141,1747129832782,-400.0,0.00011984,2]
[360899143,1747129832793,-510.18,0.00011984,2]
[360899145,1747129832801,-400.0,0.00011984,2]
[360899147,1747129832812,-400.0,0.00011984,2]
[360899149,1747129832821,-400.0,0.00011984,2]
[360899151,1747129832830,-400.0,0.00011984,2]
[360899153,1747129832839,-400.0,0.00011984,2]
[360899155,1747129832849,-400.0,0.00011984,2]
[360899157,1747129832858,-400.0,0.00011984,2]
[360899159,1747129832867,-400.0,0.00011984,2]
[360899161,1747129832877,-400.0,0.00011984,2]
[360899163,1747129832886,-415.63263079,0.00011984,2]
[360899165,1747129832895,-400.0,0.00011984,2]
[360899167,1747129832905,-597.84,0.00011984,2]
[360899169,1747129832914,-170.520578,0.00011984,2]
[360899171,1747129832923,-400.0,0.00011984,2]
[360899173,1747129832933,-400.0,0.00011984,2]
[360899175,1747129832942,-470.135409,0.00011984,2]
[360899176,1747129832951,-400.0,0.00011984,2]
[360899178,1747129832960,-4145.801845,0.00011984,2]
[360899180,1747129832970,-400.0,0.00011984,2]
[360899182,1747129832979,-882.986666,0.00011984,2]
[360899184,1747129832988,-400.0,0.00011984,2]
[360899186,1747129832997,-400.0,0.00011984,2]
[360899188,1747129833007,-400.0,0.00011984,2]
[360899190,1747129833017,-400.0,0.00011984,2]
[360899192,1747129833027,-400.0,0.00011984,2]
[360899194,1747129833037,-400.0,0.00011984,2]
[360899196,1747129833046,-400.0,0.00011984,2]
[360899198,1747129833055,-400.0,0.00011984,2]
[360899200,1747129833064,-400.0,0.00011984,2]
[360899202,1747129833074,-400.0,0.00011984,2]
[360899204,1747129833083,-561.53,0.00011984,2]
[360899206,1747129833093,-400.0,0.00011984,2]
[360899207,1747129833102,-400.0,0.00011984,2]
[360899230,1747129833317,-400.0,0.00011984,2]
[360899233,1747129833328,-400.0,0.00011984,2]
[360899235,1747129833338,-400.0,0.00011984,2]
[360899237,1747129833348,-400.91917452,0.00011984,2]
[360899239,1747129833358,-400.0,0.00011984,2]
[360899241,1747129833368,-400.0,0.00011984,2]
[360899243,1747129833378,-743.12,0.00011984,2]
[360899245,1747129833388,-400.0,0.00011984,2]
[360899247,1747129833397,-400.0,0.00011984,2]
[360899249,1747129833407,-400.0,0.00011984,2]
[360899251,1747129833417,-502.08,0.00011984,2]
[360899253,1747129833427,-691.15,0.00011984,2]
[360899255,1747129833437,-400.0,0.00011984,2]
[360899257,1747129833446,-400.0,0.00011984,2]
[360899259,1747129833456,-400.0,0.00011984,2]
[360899261,1747129833465,-400.0,0.00011984,2]
[360899262,1747129833474,-239.23979299,0.00011984,2]
[360899264,1747129833484,-400.0,0.00011984,2]
[360899266,1747129833493,-400.0,0.00011984,2]
[360899268,1747129833504,-400.0,0.00011984,2]
[360899271,1747129833514,-400.0,0.00011984,2]
[360899272,1747129833525,-400.0,0.00011984,2]
[360899274,1747129833535,-400.0,0.00011984,2]
[360899276,1747129833544,-400.0,0.00011984,2]
[360899278,1747129833553,-400.0,0.00011984,2]
[360899280,1747129833562,-400.0,0.00011984,2]
[360899282,1747129833572,-400.0,0.00011984,2]
[360899284,1747129833581,-400.0,0.00011984,2]
[360899286,1747129833593,-400.0,0.00011984,2]
[360899288,1747129833603,-400.0,0.00011984,2]
[360899290,1747129833613,-400.0,0.00011984,2]
[360899292,1747129833623,-400.0,0.00011984,2]
[360899294,1747129833633,-400.0,0.00011984,2]
[360899296,1747129833645,-400.0,0.00011984,2]
[360899298,1747129833655,-400.0,0.00011984,2]
[360899300,1747129833664,-229.32143757,0.00011984,2]
[360899302,1747129833674,-485.2,0.00011984,2]
[360899304,1747129833684,-521.18,0.00011984,2]
[360899306,1747129833693,-623.21,0.00011984,2]
[360899308,1747129833703,-400.0,0.00011984,2]
[360899310,1747129833712,-400.0,0.00011984,2]
[360899312,1747129833722,-400.0,0.00011984,2]
[360899314,1747129833732,-400.0,0.00011984,2]
[360899316,1747129833742,-400.0,0.00011984,2]
[360899318,1747129833751,-400.0,0.00011984,2]
[360899320,1747129833762,-400.0,0.00011984,2]
[360899322,1747129833771,-400.0,0.00011984,2]
[360899324,1747129833781,-400.0,0.00011984,2]
[360899326,1747129833790,-400.0,0.00011984,2]
[360899328,1747129833799,-400.0,0.00011984,2]
[360899330,1747129833808,-400.0,0.00011984,2]
[360899332,1747129833818,-410.05782754,0.00011984,2]
[360899334,1747129833827,-408.04047229,0.00011984,2]
[360899336,1747129833836,-400.0,0.00011984,2]
[360899338,1747129833846,-400.0,0.00011984,2]
[360899339,1747129833855,-402.51522498,0.00011984,2]
[360899341,1747129833865,-400.0,0.00011984,2]
[360899343,1747129833874,-413.62548243,0.00011984,2]
[360899345,1747129833884,-400.0,0.00011984,2]
[360899347,1747129833894,-400.0,0.00011984,2]
[360899348,1747129833903,-403.01852928,0.00011984,2]
[360899350,1747129833913,-400.0,0.00011984,2]
[360899352,1747129833922,-400.0,0.00011984,2]
[360899354,1747129833931,-364.23730202,0.00011984,2]
[360899356,1747129833941,-400.0,0.00011984,2]
[360899358,1747129833950,-400.0,0.00011984,2]
[360899360,1747129833960,-400.0,0.00011984,2]
[360899362,1747129833969,-400.0,0.00011984,2]
[360899364,1747129833979,-396.2055078,0.00011984,2]
[360899366,1747129833989,-400.0,0.00011984,2]
[360899368,1747129833998,-400.0,0.00011984,2]
[360899370,1747129834007,-1950.18,0.00011984,2]
[360899372,1747129834017,-400.0,0.00011984,2]
[360899374,1747129834027,-400.0,0.00011984,2]
[360899376,1747129834036,-400.0,0.00011984,2]
[360899377,1747129834048,-400.0,0.00011984,2]
[360899379,1747129834059,-415.5755871,0.00011984,2]
[360899381,1747129834068,-400.0,0.00011984,2]
[360899383,1747129834078,-400.0,0.00011984,2]
[360899385,1747129834087,-405.70618983,0.00011984,2]
[360899387,1747129834097,-400.0,0.00011984,2]
[360899389,1747129834106,-400.0,0.00011984,2]
[360899391,1747129834116,-400.0,0.00011984,2]
[360899393,1747129834128,-435.26,0.00011984,2]
[360899395,1747129834139,-400.0,0.00011984,2]
[360899397,1747129834151,-400.0,0.00011984,2]
[360899399,1747129834160,-400.0,0.00011984,2]
[360899401,1747129834169,-400.0,0.00011984,2]
[360899403,1747129834178,-400.0,0.00011984,2]
[360899405,1747129834187,-400.0,0.00011984,2]
[360899407,1747129834197,-400.0,0.00011984,2]
[360899408,1747129834206,-400.0,0.00011984,2]
[360899410,1747129834216,-400.0,0.00011984,2]
[360899412,1747129834225,-405.45097831,0.00011984,2]
[360899414,1747129834234,-400.0,0.00011984,2]
[360899416,1747129834244,-400.0,0.00011984,2]
[360899418,1747129834254,-406.44205927,0.00011984,2]
[360899420,1747129834264,-400.0,0.00011984,2]
[360899422,1747129834273,-484.9141947,0.00011984,2]
[360899424,1747129834283,-404.18333231,0.00011984,2]
[360899426,1747129834292,-400.0,0.00011984,2]
[360899428,1747129834301,-400.0,0.00011984,2]
[360899430,1747129834311,-1370.05,0.00011984,2]
[360899432,1747129834321,-604.8,0.00011984,2]
[360899434,1747129834330,-400.0,0.00011984,2]
[360899436,1747129834339,-404.55484109,0.00011984,2]
[360899438,1747129834349,-400.0,0.00011984,2]
[360899440,1747129834360,-407.23673539,0.00011984,2]
[360899442,1747129834369,-555.04,0.00011984,2]
[360899444,1747129834378,-400.0,0.00011984,2]
[360899446,1747129834387,-400.0,0.00011984,2]
[360899447,1747129834397,-433.790526,0.00011984,2]
[360899449,1747129834406,-400.0,0.00011984,2]
[360899451,1747129834416,-158.99891201,0.00011984,2]
[360899453,1747129834425,-400.0,0.00011984,2]
[360899455,1747129834434,-411.13275675,0.00011984,2]
[360899457,1747129834444,-250.0,0.00011984,2]
[360899459,1747129834453,-400.0,0.00011984,2]
[360899461,1747129834462,-451.08270327,0.00011984,2]
[360899463,1747129834471,-799.09,0.00011984,2]
[360899465,1747129834480,-400.0,0.00011984,2]